[Event "December 12 Early 2023"]
[Site "https://www.chess.com"]
[Date "2023.12.12"]
[Round "10"]
[White "Alexandre, Anne Shopie Elizabeth"]
[Black "Zakhartsov, Vladimir"]
[Result "1/2-1/2"]
[Board "10"]
[TimeControl "180+1"]
[WhiteFideId "11902418"]
[BlackFideId "4145097"]
[WhiteElo "2815"]
[BlackElo "2931"]
[WhiteTeam "HAI"]
[BlackTeam "RUS"]
[WhiteClock "0:01:06"]
[BlackClock "0:00:48"]

1. e4 {[%clk 0:03:00]}  c5 {[%clk 0:02:58]} 2. Nf3 {[%clk 0:03:01]}  Nc6 {[%clk 0:02:59]} 3. Bb5 {[%clk 0:03:00]}  g6 {[%clk 0:02:58]} 4. O-O {[%clk 0:02:59]}  Bg7 {[%clk 0:02:59]} 5. Re1 {[%clk 0:02:58]}  e5 {[%clk 0:02:59]} 6. Bxc6 {[%clk 0:02:57]}  bxc6 {[%clk 0:02:58]} 7. c3 {[%clk 0:02:55]}  Ne7 {[%clk 0:02:55]} 8. d4 {[%clk 0:02:55]}  cxd4 {[%clk 0:02:55]} 9. cxd4 {[%clk 0:02:56]}  exd4 {[%clk 0:02:55]} 10. Nxd4 {[%clk 0:02:56]}  O-O {[%clk 0:02:56]} 11. Nc3 {[%clk 0:02:56]}  Bb7 {[%clk 0:02:56]} 12. Be3 {[%clk 0:02:54]}  d5 {[%clk 0:02:54]} 13. exd5 {[%clk 0:02:53]}  Nxd5 {[%clk 0:02:54]} 14. Nxd5 {[%clk 0:02:45]}  Qxd5 {[%clk 0:02:54]} 15. Qb3 {[%clk 0:02:43]}  c5 {[%clk 0:02:51]} 16. Nf3 {[%clk 0:02:40]}  Qxb3 {[%clk 0:02:41]} 17. axb3 {[%clk 0:02:40]}  Bxf3 {[%clk 0:02:40]} 18. gxf3 {[%clk 0:02:39]}  Bxb2 {[%clk 0:02:40]} 19. Bxc5 {[%clk 0:02:25]}  Rfc8 {[%clk 0:02:28]} 20. Rxa7 {[%clk 0:02:24]}  Rab8 {[%clk 0:02:24]} 21. b4 {[%clk 0:02:19]}  Bc3 {[%clk 0:02:19]} 22. Ree7 {[%clk 0:02:19]}  Bxb4 {[%clk 0:02:17]} 23. Bxb4 {[%clk 0:02:19]}  Rxb4 {[%clk 0:02:18]} 24. Rxf7 {[%clk 0:02:20]}  Rh4 {[%clk 0:02:18]} 25. Kg2 {[%clk 0:02:12]}  Rh5 {[%clk 0:02:16]} 26. Rg7+ {[%clk 0:02:10]}  Kh8 {[%clk 0:02:16]} 27. f4 {[%clk 0:01:56]}  Rf8 {[%clk 0:02:15]} 28. Rgf7 {[%clk 0:01:56]}  Rc8 {[%clk 0:02:01]} 29. Kg3 {[%clk 0:01:51]}  Kg8 {[%clk 0:01:57]} 30. Rfd7 {[%clk 0:01:51]}  Rf8 {[%clk 0:01:52]} 31. h4 {[%clk 0:01:44]}  Kh8 {[%clk 0:01:49]} 32. Re7 {[%clk 0:01:39]}  Kg8 {[%clk 0:01:44]} 33. Re5 {[%clk 0:01:36]}  Rhf5 {[%clk 0:01:39]} 34. Ra4 {[%clk 0:01:31]}  R5f7 {[%clk 0:01:37]} 35. h5 {[%clk 0:01:30]}  Kg7 {[%clk 0:01:38]} 36. hxg6 {[%clk 0:01:30]}  hxg6 {[%clk 0:01:39]} 37. Rd4 {[%clk 0:01:30]}  Ra8 {[%clk 0:01:34]} 38. Rg5 {[%clk 0:01:28]}  Ra3+ {[%clk 0:01:30]} 39. f3 {[%clk 0:01:28]}  Ra6 {[%clk 0:01:30]} 40. Re4 {[%clk 0:01:28]}  Kh6 {[%clk 0:01:30]} 41. Rg4 {[%clk 0:01:27]}  Rf5 {[%clk 0:01:28]} 42. Re5 {[%clk 0:01:27]}  Ra1 {[%clk 0:01:18]} 43. Rxf5 {[%clk 0:01:08]}  gxf5 {[%clk 0:01:19]} 44. Rh4+ {[%clk 0:01:05]}  Kg6 {[%clk 0:01:18]} 45. Rh2 {[%clk 0:01:06]}  Ra4 {[%clk 0:01:13]} 46. Re2 {[%clk 0:01:05]}  Kf6 {[%clk 0:01:12]} 47. Rg2 {[%clk 0:01:06]}  Rb4 {[%clk 0:01:11]} 48. Rf2 {[%clk 0:01:06]}  Rb8 {[%clk 0:01:10]} 49. Rg2 {[%clk 0:01:06]}  Rg8+ {[%clk 0:01:09]} 50. Kf2 {[%clk 0:01:07]}  Ra8 {[%clk 0:01:10]} 51. Rg5 {[%clk 0:01:06]}  Ra1 {[%clk 0:01:07]} 52. Kg3 {[%clk 0:01:06]}  Rg1+ {[%clk 0:01:06]} 53. Kh4 {[%clk 0:01:06]}  Rh1+ {[%clk 0:01:04]} 54. Kg3 {[%clk 0:01:06]}  Rg1+ {[%clk 0:01:03]} 55. Kh4 {[%clk 0:01:06]}  Rf1 {[%clk 0:01:03]} 56. Kg3 {[%clk 0:01:06]}  Rh1 {[%clk 0:00:52]} 57. Kg2 {[%clk 0:01:06]}  Rh4 {[%clk 0:00:51]} 58. Kg3 {[%clk 0:01:06]}  Rh1 {[%clk 0:00:50]} 59. Kf2 {[%clk 0:01:06]}  Rh4 {[%clk 0:00:48]} 60. Kg3 {[%clk 0:01:06]}  Rh1 {[%clk 0:00:48]} 1/2-1/2

[Event "December 12 Early 2023"]
[Site "https://www.chess.com"]
[Date "2023.12.12"]
[Round "10"]
[White "Novozhilov, Semen"]
[Black "Materia, Marco"]
[Result "0-1"]
[Board "12"]
[TimeControl "180+1"]
[WhiteFideId "24289167"]
[BlackFideId "45150451"]
[WhiteElo "2775"]
[BlackElo "2843"]
[WhiteTeam "RUS"]
[BlackTeam "FRA"]
[WhiteClock "0:00:05"]
[BlackClock "0:00:21"]

1. d4 {[%clk 0:03:00]}  Nf6 {[%clk 0:02:59]} 2. Nf3 {[%clk 0:03:01]}  d5 {[%clk 0:02:59]} 3. c4 {[%clk 0:03:01]}  e6 {[%clk 0:02:59]} 4. g3 {[%clk 0:03:01]}  Be7 {[%clk 0:02:59]} 5. Bg2 {[%clk 0:03:02]}  O-O {[%clk 0:03:00]} 6. O-O {[%clk 0:03:02]}  Nbd7 {[%clk 0:03:01]} 7. Qc2 {[%clk 0:03:02]}  c6 {[%clk 0:03:01]} 8. Nbd2 {[%clk 0:03:02]}  b6 {[%clk 0:03:00]} 9. e4 {[%clk 0:03:03]}  dxe4 {[%clk 0:02:59]} 10. Nxe4 {[%clk 0:03:03]}  Bb7 {[%clk 0:02:58]} 11. Rd1 {[%clk 0:03:03]}  Qc8 {[%clk 0:02:42]} 12. Bf4 {[%clk 0:02:52]}  Nxe4 {[%clk 0:02:40]} 13. Qxe4 {[%clk 0:02:52]}  c5 {[%clk 0:02:36]} 14. d5 {[%clk 0:02:51]}  Bf6 {[%clk 0:02:35]} 15. Qc2 {[%clk 0:02:42]}  exd5 {[%clk 0:02:35]} 16. cxd5 {[%clk 0:02:41]}  Re8 {[%clk 0:02:32]} 17. Ng5 {[%clk 0:02:41]}  Nf8 {[%clk 0:02:19]} 18. Ne4 {[%clk 0:02:40]}  Qf5 {[%clk 0:02:19]} 19. Qc4 {[%clk 0:02:29]}  Be5 {[%clk 0:02:05]} 20. Nd6 {[%clk 0:02:27]}  Bxd6 {[%clk 0:02:04]} 21. Bxd6 {[%clk 0:02:28]}  Rad8 {[%clk 0:02:03]} 22. Bf4 {[%clk 0:02:21]}  Ng6 {[%clk 0:02:01]} 23. Bc7 {[%clk 0:02:05]}  Rc8 {[%clk 0:01:43]} 24. d6 {[%clk 0:01:55]}  Ne5 {[%clk 0:01:36]} 25. Bxb7 {[%clk 0:01:06]}  Nxc4 {[%clk 0:01:25]} 26. Bxc8 {[%clk 0:01:03]}  Rxc8 {[%clk 0:00:50]} 27. d7 {[%clk 0:01:01]}  Rd8 {[%clk 0:00:51]} 28. Bxd8 {[%clk 0:00:54]}  Ne5 {[%clk 0:00:51]} 29. Bxb6 {[%clk 0:00:33]}  Nxd7 {[%clk 0:00:51]} 30. Bxa7 {[%clk 0:00:32]}  h5 {[%clk 0:00:50]} 31. f4 {[%clk 0:00:27]}  h4 {[%clk 0:00:48]} 32. a4 {[%clk 0:00:23]}  Nf6 {[%clk 0:00:41]} 33. a5 {[%clk 0:00:20]}  hxg3 {[%clk 0:00:39]} 34. hxg3 {[%clk 0:00:19]}  Qg4 {[%clk 0:00:32]} 35. Rd8+ {[%clk 0:00:15]}  Kh7 {[%clk 0:00:32]} 36. Rd3 {[%clk 0:00:16]}  Qe2 {[%clk 0:00:30]} 37. Rad1 {[%clk 0:00:15]}  Ne4 {[%clk 0:00:30]} 38. a6 {[%clk 0:00:06]}  Nf2 {[%clk 0:00:22]} 39. R1d2 {[%clk 0:00:05]}  Qe1+ {[%clk 0:00:22]} 40. Kg2 {[%clk 0:00:06]}  Nxd3 {[%clk 0:00:22]} 41. Rc2 {[%clk 0:00:03]}  Qd1 {[%clk 0:00:21]} 42. Rc3 {[%clk 0:00:02]}  Qe2+ {[%clk 0:00:21]} 43. Kh3 {[%clk 0:00:02]}  Nf2+ {[%clk 0:00:21]} 44. Kg2 {[%clk 0:00:03]}  Ne4+ {[%clk 0:00:22]} 45. Kh3 {[%clk 0:00:04]}  Nxc3 {[%clk 0:00:21]} 46. bxc3 {[%clk 0:00:05]}  Qxa6 {[%clk 0:00:22]} 47. Bxc5 {[%clk 0:00:06]}  Qh6+ {[%clk 0:00:21]} 48. Kg2 {[%clk 0:00:05]}  Qc6+ {[%clk 0:00:21]} 0-1

[Event "December 12 Early 2023"]
[Site "https://www.chess.com"]
[Date "2023.12.12"]
[Round "10"]
[White "Bortnyk, Olexandr"]
[Black "Matinian, Nikita"]
[Result "0-1"]
[Board "13"]
[TimeControl "180+1"]
[WhiteFideId "14120828"]
[BlackFideId "24129100"]
[WhiteElo "2998"]
[BlackElo "2780"]
[WhiteTeam "UKR"]
[BlackTeam "FID"]
[WhiteClock "0:02:39"]
[BlackClock "0:00:06"]

1. e4 {[%clk 0:03:00]}  c5 {[%clk 0:02:59]} 2. c3 {[%clk 0:02:58]}  d5 {[%clk 0:02:59]} 3. exd5 {[%clk 0:02:59]}  Qxd5 {[%clk 0:02:59]} 4. d4 {[%clk 0:03:00]}  Nf6 {[%clk 0:02:58]} 5. Be3 {[%clk 0:03:00]}  cxd4 {[%clk 0:02:52]} 6. cxd4 {[%clk 0:03:01]}  e6 {[%clk 0:02:52]} 7. Nc3 {[%clk 0:03:01]}  Bb4 {[%clk 0:02:52]} 8. Nf3 {[%clk 0:03:02]}  Nc6 {[%clk 0:02:52]} 9. Bd3 {[%clk 0:03:02]}  O-O {[%clk 0:02:48]} 10. O-O {[%clk 0:03:03]}  Bxc3 {[%clk 0:02:41]} 11. bxc3 {[%clk 0:03:04]}  b6 {[%clk 0:02:41]} 12. h3 {[%clk 0:03:05]}  Bb7 {[%clk 0:02:41]} 13. Qe2 {[%clk 0:03:05]}  Rac8 {[%clk 0:02:40]} 14. Rab1 {[%clk 0:03:06]}  Rfe8 {[%clk 0:02:35]} 15. Rb5 {[%clk 0:03:06]}  Qd8 {[%clk 0:02:27]} 16. Rg5 {[%clk 0:03:07]}  Ne7 {[%clk 0:02:21]} 17. Ne5 {[%clk 0:03:07]}  Rxc3 {[%clk 0:02:15]} 18. Qd2 {[%clk 0:03:07]}  Rxd3 {[%clk 0:02:10]} 19. Qxd3 {[%clk 0:03:06]}  Be4 {[%clk 0:01:29]} 20. Qa3 {[%clk 0:03:06]}  h6 {[%clk 0:01:23]} 21. Rg3 {[%clk 0:03:05]}  Nf5 {[%clk 0:01:20]} 22. Qxa7 {[%clk 0:03:05]}  Re7 {[%clk 0:01:13]} 23. Qa3 {[%clk 0:03:06]}  Nxg3 {[%clk 0:01:13]} 24. fxg3 {[%clk 0:03:07]}  Rc7 {[%clk 0:00:59]} 25. g4 {[%clk 0:03:06]}  Qa8 {[%clk 0:00:56]} 26. Qxa8+ {[%clk 0:03:00]}  Bxa8 {[%clk 0:00:56]} 27. Rf2 {[%clk 0:02:57]}  Nd5 {[%clk 0:00:54]} 28. Bd2 {[%clk 0:02:58]}  Ra7 {[%clk 0:00:50]} 29. Bc1 {[%clk 0:02:57]}  f6 {[%clk 0:00:47]} 30. Nd3 {[%clk 0:02:56]}  Nc3 {[%clk 0:00:47]} 31. Nb4 {[%clk 0:02:55]}  Ra4 {[%clk 0:00:39]} 32. a3 {[%clk 0:02:55]}  Nb5 {[%clk 0:00:37]} 33. Rc2 {[%clk 0:02:53]}  Be4 {[%clk 0:00:34]} 34. Rc8+ {[%clk 0:02:53]}  Kh7 {[%clk 0:00:35]} 35. Re8 {[%clk 0:02:46]}  Nxd4 {[%clk 0:00:30]} 36. Bb2 {[%clk 0:02:45]}  Ne2+ {[%clk 0:00:11]} 37. Kf2 {[%clk 0:02:45]}  Nf4 {[%clk 0:00:10]} 38. Ke3 {[%clk 0:02:45]}  Bg6 {[%clk 0:00:11]} 39. Re7 {[%clk 0:02:45]}  Rxb4 {[%clk 0:00:09]} 40. Rxg7+ {[%clk 0:02:34]}  Kxg7 {[%clk 0:00:08]} 41. axb4 {[%clk 0:02:35]}  Nd5+ {[%clk 0:00:08]} 42. Kd4 {[%clk 0:02:36]}  Nxb4 {[%clk 0:00:09]} 43. Kc4 {[%clk 0:02:37]}  Nd3 {[%clk 0:00:08]} 44. Bd4 {[%clk 0:02:37]}  Nf4 {[%clk 0:00:08]} 45. Bxb6 {[%clk 0:02:37]}  Nxg2 {[%clk 0:00:08]} 46. Bc7 {[%clk 0:02:38]}  e5 {[%clk 0:00:08]} 47. Bd8 {[%clk 0:02:38]}  Nf4 {[%clk 0:00:08]} 48. h4 {[%clk 0:02:38]}  Bf7+ {[%clk 0:00:07]} 49. Kc3 {[%clk 0:02:38]}  Ng2 {[%clk 0:00:07]} 50. g5 {[%clk 0:02:39]}  fxg5 {[%clk 0:00:05]} 51. hxg5 {[%clk 0:02:39]}  h5 {[%clk 0:00:05]} 52. Bf6+ {[%clk 0:02:40]}  Kg6 {[%clk 0:00:05]} 53. Bxe5 {[%clk 0:02:41]}  Kxg5 {[%clk 0:00:05]} 54. Bg3 {[%clk 0:02:40]}  Kg4 {[%clk 0:00:06]} 55. Bf2 {[%clk 0:02:41]}  Kf3 {[%clk 0:00:06]} 56. Bg1 {[%clk 0:02:41]}  h4 {[%clk 0:00:06]} 57. Bh2 {[%clk 0:02:42]}  h3 {[%clk 0:00:06]} 58. Kd4 {[%clk 0:02:43]}  Nf4 {[%clk 0:00:05]} 59. Ke5 {[%clk 0:02:43]}  Ne2 {[%clk 0:00:05]} 60. Kf6 {[%clk 0:02:43]}  Kg2 {[%clk 0:00:05]} 61. Be5 {[%clk 0:02:41]}  Ng3 {[%clk 0:00:05]} 62. Bxg3 {[%clk 0:02:40]}  Kxg3 {[%clk 0:00:06]} 63. Kxf7 {[%clk 0:02:39]}  h2 {[%clk 0:00:06]} 0-1

[Event "December 12 Early 2023"]
[Site "https://www.chess.com"]
[Date "2023.12.12"]
[Round "10"]
[White "Sychev, Klementy"]
[Black "Vakhlamov, Igor L."]
[Result "1-0"]
[Board "14"]
[TimeControl "180+1"]
[WhiteFideId "4114060"]
[BlackFideId "24126748"]
[WhiteElo "2937"]
[BlackElo "2844"]
[WhiteTeam "FID"]
[BlackTeam "RUS"]
[WhiteClock "0:00:07"]
[BlackClock "0:00:06"]

1. e4 {[%clk 0:02:59]}  c5 {[%clk 0:03:00]} 2. Nc3 {[%clk 0:02:42]}  e6 {[%clk 0:03:00]} 3. f4 {[%clk 0:02:42]}  a6 {[%clk 0:02:59]} 4. Nf3 {[%clk 0:02:41]}  Nc6 {[%clk 0:02:58]} 5. g3 {[%clk 0:02:37]}  d5 {[%clk 0:02:59]} 6. d3 {[%clk 0:02:35]}  dxe4 {[%clk 0:02:53]} 7. Nxe4 {[%clk 0:02:32]}  Nf6 {[%clk 0:02:50]} 8. Nxf6+ {[%clk 0:02:30]}  Qxf6 {[%clk 0:02:50]} 9. Bg2 {[%clk 0:02:30]}  Bd6 {[%clk 0:02:49]} 10. O-O {[%clk 0:02:29]}  O-O {[%clk 0:02:47]} 11. Ng5 {[%clk 0:02:25]}  Qd8 {[%clk 0:02:42]} 12. Be3 {[%clk 0:02:21]}  Rb8 {[%clk 0:01:59]} 13. c3 {[%clk 0:01:48]}  Ne7 {[%clk 0:01:54]} 14. Ne4 {[%clk 0:01:26]}  b5 {[%clk 0:01:54]} 15. Nxc5 {[%clk 0:01:10]}  b4 {[%clk 0:01:38]} 16. Ne4 {[%clk 0:01:04]}  bxc3 {[%clk 0:01:37]} 17. bxc3 {[%clk 0:01:04]}  Bb7 {[%clk 0:01:29]} 18. Rb1 {[%clk 0:00:56]}  Bd5 {[%clk 0:00:55]} 19. Qa4 {[%clk 0:00:44]}  Nf5 {[%clk 0:00:49]} 20. Bf2 {[%clk 0:00:41]}  Qc7 {[%clk 0:00:44]} 21. c4 {[%clk 0:00:31]}  Bc6 {[%clk 0:00:45]} 22. Qxc6 {[%clk 0:00:26]}  Qxc6 {[%clk 0:00:41]} 23. Nf6+ {[%clk 0:00:27]}  gxf6 {[%clk 0:00:41]} 24. Bxc6 {[%clk 0:00:27]}  Rbc8 {[%clk 0:00:38]} 25. Bb7 {[%clk 0:00:26]}  Rc7 {[%clk 0:00:38]} 26. a4 {[%clk 0:00:15]}  a5 {[%clk 0:00:37]} 27. Be4 {[%clk 0:00:15]}  Ne7 {[%clk 0:00:21]} 28. Rb5 {[%clk 0:00:14]}  f5 {[%clk 0:00:16]} 29. Bf3 {[%clk 0:00:15]}  Bb4 {[%clk 0:00:16]} 30. Bb6 {[%clk 0:00:14]}  Rd7 {[%clk 0:00:16]} 31. Rd1 {[%clk 0:00:13]}  Rb8 {[%clk 0:00:09]} 32. Kf1 {[%clk 0:00:11]}  Nc8 {[%clk 0:00:08]} 33. Be3 {[%clk 0:00:10]}  Rxb5 {[%clk 0:00:05]} 34. axb5 {[%clk 0:00:11]}  a4 {[%clk 0:00:05]} 35. b6 {[%clk 0:00:11]}  Bd6 {[%clk 0:00:03]} 36. c5 {[%clk 0:00:10]}  a3 {[%clk 0:00:02]} 37. b7 {[%clk 0:00:07]}  Na7 {[%clk 0:00:01]} 38. cxd6 {[%clk 0:00:07]}  Nc6 {[%clk 0:00:01]} 39. Bxc6 {[%clk 0:00:07]}  a2 {[%clk 0:00:02]} 40. Bxd7 {[%clk 0:00:07]}  a1=Q {[%clk 0:00:03]} 41. Rxa1 {[%clk 0:00:06]}  e5 {[%clk 0:00:03]} 42. b8=Q+ {[%clk 0:00:06]}  Kg7 {[%clk 0:00:03]} 43. fxe5 {[%clk 0:00:07]}  Kg6 {[%clk 0:00:04]} 44. Qh8 {[%clk 0:00:06]}  Kh5 {[%clk 0:00:05]} 45. Qxh7+ {[%clk 0:00:06]}  Kg4 {[%clk 0:00:06]} 46. Qxf5# {[%clk 0:00:07]} 1-0

[Event "December 12 Early 2023"]
[Site "https://www.chess.com"]
[Date "2023.12.12"]
[Round "10"]
[White "Yuan, Qingyu"]
[Black "Durarbayli, Vasif"]
[Result "0-1"]
[Board "16"]
[TimeControl "180+1"]
[WhiteFideId "8609772"]
[BlackFideId "13402935"]
[WhiteElo "2794"]
[BlackElo "2906"]
[WhiteTeam "CHN"]
[BlackTeam "AZE"]
[WhiteClock "0:00:00"]
[BlackClock "0:00:09"]

1. e4 {[%clk 0:03:00]}  e5 {[%clk 0:03:00]} 2. Nf3 {[%clk 0:03:01]}  Nc6 {[%clk 0:03:00]} 3. Bb5 {[%clk 0:03:01]}  a6 {[%clk 0:03:01]} 4. Ba4 {[%clk 0:03:02]}  Nf6 {[%clk 0:03:02]} 5. d3 {[%clk 0:03:02]}  b5 {[%clk 0:03:01]} 6. Bb3 {[%clk 0:03:03]}  Bc5 {[%clk 0:03:02]} 7. Nc3 {[%clk 0:02:52]}  d6 {[%clk 0:02:58]} 8. Nd5 {[%clk 0:02:49]}  h6 {[%clk 0:02:57]} 9. c3 {[%clk 0:02:49]}  Rb8 {[%clk 0:02:54]} 10. d4 {[%clk 0:02:42]}  Ba7 {[%clk 0:02:53]} 11. Be3 {[%clk 0:02:30]}  Ng4 {[%clk 0:02:42]} 12. dxe5 {[%clk 0:02:05]}  Bxe3 {[%clk 0:02:24]} 13. Nxe3 {[%clk 0:02:01]}  Nxe3 {[%clk 0:02:20]} 14. fxe3 {[%clk 0:02:00]}  Nxe5 {[%clk 0:02:13]} 15. Nxe5 {[%clk 0:01:58]}  dxe5 {[%clk 0:02:14]} 16. Qxd8+ {[%clk 0:01:58]}  Kxd8 {[%clk 0:02:15]} 17. Bxf7 {[%clk 0:01:58]}  Ke7 {[%clk 0:02:11]} 18. Bd5 {[%clk 0:01:53]}  Rf8 {[%clk 0:02:11]} 19. Rf1 {[%clk 0:01:49]}  Rxf1+ {[%clk 0:02:06]} 20. Kxf1 {[%clk 0:01:49]}  Rb6 {[%clk 0:02:07]} 21. Rd1 {[%clk 0:01:37]}  b4 {[%clk 0:02:04]} 22. cxb4 {[%clk 0:01:29]}  Rxb4 {[%clk 0:02:04]} 23. b3 {[%clk 0:01:22]}  Bd7 {[%clk 0:01:53]} 24. Ke1 {[%clk 0:01:17]}  a5 {[%clk 0:01:51]} 25. Kd2 {[%clk 0:01:16]}  a4 {[%clk 0:01:30]} 26. Rf1 {[%clk 0:01:04]}  axb3 {[%clk 0:01:24]} 27. axb3 {[%clk 0:00:57]}  Be6 {[%clk 0:01:12]} 28. Kc3 {[%clk 0:00:57]}  c5 {[%clk 0:00:51]} 29. Ra1 {[%clk 0:00:39]}  Bxd5 {[%clk 0:00:50]} 30. exd5 {[%clk 0:00:39]}  Kd6 {[%clk 0:00:51]} 31. Ra7 {[%clk 0:00:35]}  Rg4 {[%clk 0:00:47]} 32. g3 {[%clk 0:00:25]}  Kxd5 {[%clk 0:00:42]} 33. Kd3 {[%clk 0:00:25]}  h5 {[%clk 0:00:34]} 34. e4+ {[%clk 0:00:18]}  Kc6 {[%clk 0:00:33]} 35. Ra6+ {[%clk 0:00:14]}  Kb5 {[%clk 0:00:30]} 36. Re6 {[%clk 0:00:14]}  h4 {[%clk 0:00:28]} 37. gxh4 {[%clk 0:00:10]}  Rxh4 {[%clk 0:00:29]} 38. Rxe5 {[%clk 0:00:10]}  Rh3+ {[%clk 0:00:26]} 39. Kc2 {[%clk 0:00:10]}  Rxh2+ {[%clk 0:00:21]} 40. Kc3 {[%clk 0:00:10]}  Rh3+ {[%clk 0:00:22]} 41. Kc2 {[%clk 0:00:10]}  Kb4 {[%clk 0:00:22]} 42. Rg5 {[%clk 0:00:07]}  Rc3+ {[%clk 0:00:17]} 43. Kd2 {[%clk 0:00:07]}  Kxb3 {[%clk 0:00:12]} 44. Rxg7 {[%clk 0:00:06]}  Rc2+ {[%clk 0:00:13]} 45. Kd1 {[%clk 0:00:03]}  c4 {[%clk 0:00:11]} 46. Rg3+ {[%clk 0:00:02]}  c3 {[%clk 0:00:10]} 47. Rg8 {[%clk 0:00:02]}  Rb2 {[%clk 0:00:06]} 48. Rb8+ {[%clk 0:00:01]}  Ka2 {[%clk 0:00:07]} 49. Ra8+ {[%clk 0:00:01]}  Kb1 {[%clk 0:00:07]} 50. Rc8 {[%clk 0:00:01]}  c2+ {[%clk 0:00:08]} 51. Ke2 {[%clk 0:00:01]}  c1=Q+ {[%clk 0:00:08]} 52. Kf3 {[%clk 0:00:01]}  Qxc8 {[%clk 0:00:09]} 53. Kf4 {[%clk 0:00:00]}  Rb4 {[%clk 0:00:09]} 0-1

[Event "December 12 Early 2023"]
[Site "https://www.chess.com"]
[Date "2023.12.12"]
[Round "10"]
[White "Xu, Yi"]
[Black "Szpar, Milosz"]
[Result "0-1"]
[Board "18"]
[TimeControl "180+1"]
[WhiteFideId "8605564"]
[BlackFideId "1184989"]
[WhiteElo "2876"]
[BlackElo "2884"]
[WhiteTeam "CHN"]
[BlackTeam "POL"]
[WhiteClock "0:00:04"]
[BlackClock "0:00:06"]

1. e4 {[%clk 0:03:00]}  e6 {[%clk 0:03:00]} 2. d4 {[%clk 0:02:59]}  d5 {[%clk 0:03:00]} 3. e5 {[%clk 0:02:59]}  c5 {[%clk 0:03:00]} 4. c3 {[%clk 0:03:00]}  Nc6 {[%clk 0:03:01]} 5. Nf3 {[%clk 0:03:01]}  Bd7 {[%clk 0:03:01]} 6. Be2 {[%clk 0:03:00]}  Nge7 {[%clk 0:03:02]} 7. O-O {[%clk 0:02:57]}  cxd4 {[%clk 0:03:02]} 8. cxd4 {[%clk 0:02:57]}  Nf5 {[%clk 0:03:02]} 9. Nc3 {[%clk 0:02:52]}  a6 {[%clk 0:03:02]} 10. a3 {[%clk 0:02:46]}  Rc8 {[%clk 0:03:02]} 11. g4 {[%clk 0:02:19]}  Nh4 {[%clk 0:02:58]} 12. Nxh4 {[%clk 0:02:19]}  Qxh4 {[%clk 0:02:58]} 13. Be3 {[%clk 0:02:19]}  f6 {[%clk 0:02:48]} 14. f4 {[%clk 0:02:16]}  Be7 {[%clk 0:02:15]} 15. Qd2 {[%clk 0:01:42]}  O-O {[%clk 0:02:10]} 16. exf6 {[%clk 0:01:36]}  gxf6 {[%clk 0:01:56]} 17. Kh1 {[%clk 0:01:35]}  Kh8 {[%clk 0:01:53]} 18. Bf3 {[%clk 0:01:20]}  Bd6 {[%clk 0:01:49]} 19. Qg2 {[%clk 0:01:18]}  Na5 {[%clk 0:01:38]} 20. Rae1 {[%clk 0:01:11]}  Nc4 {[%clk 0:01:35]} 21. Bc1 {[%clk 0:01:11]}  Nxa3 {[%clk 0:01:21]} 22. f5 {[%clk 0:00:50]}  exf5 {[%clk 0:01:20]} 23. Bxd5 {[%clk 0:00:46]}  Nb5 {[%clk 0:01:08]} 24. Bd2 {[%clk 0:00:32]}  Rg8 {[%clk 0:00:48]} 25. Bxg8 {[%clk 0:00:31]}  Rxg8 {[%clk 0:00:48]} 26. Nxb5 {[%clk 0:00:16]}  axb5 {[%clk 0:00:49]} 27. d5 {[%clk 0:00:10]}  Rxg4 {[%clk 0:00:42]} 28. Qf2 {[%clk 0:00:09]}  Qh5 {[%clk 0:00:35]} 29. Rg1 {[%clk 0:00:07]}  f4 {[%clk 0:00:19]} 30. Rg2 {[%clk 0:00:04]}  Qxd5 {[%clk 0:00:18]} 31. Rg1 {[%clk 0:00:03]}  Rxg2 {[%clk 0:00:17]} 32. Qxg2 {[%clk 0:00:03]}  Bc6 {[%clk 0:00:16]} 33. h3 {[%clk 0:00:02]}  Qxg2+ {[%clk 0:00:15]} 34. Rxg2 {[%clk 0:00:03]}  Bxg2+ {[%clk 0:00:12]} 35. Kxg2 {[%clk 0:00:04]}  Kg7 {[%clk 0:00:13]} 36. Kf3 {[%clk 0:00:05]}  f5 {[%clk 0:00:12]} 37. Bc3+ {[%clk 0:00:03]}  Kf7 {[%clk 0:00:12]} 38. h4 {[%clk 0:00:03]}  h5 {[%clk 0:00:12]} 39. Bd4 {[%clk 0:00:02]}  Ke6 {[%clk 0:00:12]} 40. b3 {[%clk 0:00:02]}  Be5 {[%clk 0:00:09]} 41. Bc5 {[%clk 0:00:02]}  Kd5 {[%clk 0:00:09]} 42. Bb6 {[%clk 0:00:02]}  Ke6 {[%clk 0:00:05]} 43. Bf2 {[%clk 0:00:02]}  Bd6 {[%clk 0:00:05]} 44. Bd4 {[%clk 0:00:02]}  Bc7 {[%clk 0:00:05]} 45. Bf2 {[%clk 0:00:03]}  Kd5 {[%clk 0:00:06]} 46. Bg1 {[%clk 0:00:02]}  b6 {[%clk 0:00:05]} 47. Bf2 {[%clk 0:00:02]}  Ke5 {[%clk 0:00:05]} 48. Bg1 {[%clk 0:00:02]}  Bd8 {[%clk 0:00:05]} 49. Bf2 {[%clk 0:00:02]}  Bc7 {[%clk 0:00:05]} 50. Bg1 {[%clk 0:00:03]}  Ke6 {[%clk 0:00:05]} 51. Bf2 {[%clk 0:00:03]}  Kd7 {[%clk 0:00:05]} 52. Bd4 {[%clk 0:00:03]}  Kc6 {[%clk 0:00:05]} 53. Bf2 {[%clk 0:00:03]}  Bd6 {[%clk 0:00:05]} 54. Bd4 {[%clk 0:00:03]}  Bc5 {[%clk 0:00:05]} 55. Be5 {[%clk 0:00:02]}  Be3 {[%clk 0:00:05]} 56. Bc3 {[%clk 0:00:02]}  Kd5 {[%clk 0:00:05]} 57. Bb2 {[%clk 0:00:02]}  Bd4 {[%clk 0:00:05]} 58. Ba3 {[%clk 0:00:02]}  Be5 {[%clk 0:00:04]} 59. Bb4 {[%clk 0:00:02]}  Kd4 {[%clk 0:00:05]} 60. Bd2 {[%clk 0:00:02]}  Kd3 {[%clk 0:00:04]} 61. Be1 {[%clk 0:00:03]}  Kc2 {[%clk 0:00:04]} 62. b4 {[%clk 0:00:03]}  Kb3 {[%clk 0:00:04]} 63. Bf2 {[%clk 0:00:03]}  Kc4 {[%clk 0:00:04]} 64. Bxb6 {[%clk 0:00:04]}  Kxb4 {[%clk 0:00:05]} 65. Bd8 {[%clk 0:00:04]}  Kc4 {[%clk 0:00:05]} 66. Be7 {[%clk 0:00:04]}  b4 {[%clk 0:00:05]} 67. Ke2 {[%clk 0:00:05]}  b3 {[%clk 0:00:06]} 68. Kd2 {[%clk 0:00:06]}  f3 {[%clk 0:00:05]} 69. Bg5 {[%clk 0:00:05]}  f2 {[%clk 0:00:06]} 70. Ke2 {[%clk 0:00:04]}  b2 {[%clk 0:00:06]} 0-1